fUSD/lending_fUSD_20250817
["ID","MTS","AMOUNT","RATE_DAILY","PERIOD"]
[379727864,1755389236665,500.0,0.000139,5]
[379727867,1755389354552,-176.88092233,0.00012707,2]
[379727868,1755389354677,-526.22686017,0.00012707,2]
[379727869,1755389354703,-248.82,0.000135,2]
[379727870,1755389354732,-174.19,0.00013521,2]
[379727871,1755389354760,-1000.0,0.00013549,2]
[379727872,1755389354787,-202.83,0.00013564,2]
[379727873,1755389354819,-150.0,0.00013567,2]
[379727874,1755389354886,-166.93,0.00013572,2]
[379727875,1755389354919,-459.66,0.00013699,2]
[379727876,1755389354947,-156.81,0.00013699,2]
[379727877,1755389354977,-151.41,0.00013857,2]
[379727878,1755389355006,-151.41,0.00013926,2]
[379727879,1755389355037,-151.41,0.00013996,2]
[379727880,1755389355076,-1596.4,0.00014,2]
[379727881,1755389355110,-1100.0,0.00014,5]
[379727882,1755389355141,-1200.0,0.00014099,2]
[379727883,1755389355179,-1700.0,0.000141,5]
[379727884,1755389355211,-277.35679052,0.00014191,2]
[379727885,1755389355243,-2200.0,0.000142,5]
[379727886,1755389355275,-387.16757763,0.00014255,2]
[379727887,1755389355306,-2800.0,0.000143,5]
[379727888,1755389355337,-168.0,0.00014337,2]
[379727889,1755389355365,-500.0,0.000144,5]
[379727890,1755389355393,-500.0,0.00014438,2]
[379727891,1755389355426,-168.26585411,0.00014475,2]
[379727892,1755389355455,-500.0,0.000145,5]
[379727893,1755389355485,-500.0,0.000146,5]
[379727894,1755389355515,-168.0,0.00014647,2]
[379727895,1755389355544,-300.0,0.00014659,2]
[379727896,1755389355571,-160.0,0.00014659,2]
[379727897,1755389355599,-500.0,0.00014659,2]
[379727898,1755389355627,-151.0,0.00014659,2]
[379727899,1755389355656,-151.0,0.00014659,2]
[379727900,1755389355683,-168.1588106,0.00014667,2]
[379727901,1755389355710,-714.022,0.00014667,2]
[379727902,1755389355737,-183.38379685,0.00014668,2]
[379727903,1755389355763,-158.61421058,0.00014669,2]
[379727904,1755389355792,-1108.0,0.00014682,2]
[379727905,1755389355820,-150.0,0.00014682,2]
[379727906,1755389355848,-170.0,0.00014698,2]
[379727907,1755389355873,-500.0,0.00014699,2]
[379727908,1755389355899,-500.0,0.000147,5]
[379727909,1755389355927,-168.15881056,0.000147,2]
[379727910,1755389357395,-2500.0,0.00014713,2]
[379727911,1755389357447,-1000.0,0.00014713,3]
[379727912,1755389357473,-300.0,0.00014713,2]
[379727913,1755389357497,-250.0,0.00014713,2]
[379727914,1755389357523,-150.0,0.00014713,2]
[379727915,1755389357547,-2500.0,0.00014713,2]
[379727916,1755389357571,-1000.0,0.00014713,3]
[379727917,1755389357593,-150.0,0.00014713,2]
[379727918,1755389357619,-2500.0,0.00014713,2]
[379727919,1755389357644,-1000.0,0.00014713,3]
[379727920,1755389357670,-300.0,0.00014713,2]
[379727921,1755389357693,-150.0,0.00014713,2]
[379727922,1755389357719,-500.0,0.00014714,2]
[379727923,1755389357742,-1200.0,0.00014722,2]
[379727924,1755389357766,-600.0,0.00014722,2]
[379727925,1755389357793,-1800.0,0.00014722,2]
[379727926,1755389357818,-168.15881056,0.00014734,2]
[379727927,1755389357842,-183.38379685,0.00014745,2]
[379727928,1755389357866,-300.69,0.00014749,2]
[379727929,1755389357892,-203.91,0.00014749,2]
[379727930,1755389357919,-201.26,0.00014749,2]
[379727931,1755389357946,-302.88,0.00014749,2]
[379727932,1755389357972,-1655.418,0.0001476,2]
[379727933,1755389357997,-166.838,0.0001476,2]
[379727934,1755389358022,-500.0,0.00014766,2]
[379727935,1755389358048,-214838.12134437,0.00014767,2]
[379727936,1755389358072,-5401.19858246,0.00014767,2]
[379727937,1755389358098,-168.15881056,0.00014767,2]
[379727938,1755389358123,-833.97,0.00014767,2]
[379727939,1755389358146,-594.29,0.00014767,2]
[379727940,1755389358175,-1486.97,0.00014767,2]
[379727941,1755389358198,-400.0,0.00014767,2]
[379727942,1755389358224,-400.0,0.00014767,2]
[379727943,1755389358250,-3737.31,0.00014767,2]
[379727944,1755389358274,-470.35,0.00014767,2]
[379727945,1755389358296,-459.22,0.00014767,2]
[379727946,1755389358320,-2487.65,0.00014767,2]
[379727947,1755389358344,-410.25,0.00014767,2]
[379727948,1755389358369,-2365.75,0.00014767,2]
[379727949,1755389358392,-806.54,0.00014767,2]
[379727950,1755389358414,-400.0,0.00014767,2]
[379727951,1755389358438,-3312.85,0.00014767,2]
[379727952,1755389358462,-1757.93,0.00014767,2]
[379727953,1755389358486,-400.0,0.00014767,2]
[379727954,1755389358509,-3425.16,0.00014767,2]
[379727955,1755389358533,-571.55,0.00014767,2]
[379727956,1755389358556,-777.96,0.00014767,2]
[379727957,1755389358584,-787.79,0.00014767,2]
[379727958,1755389358609,-400.0,0.00014767,2]
[379727959,1755389358632,-5403.023783,0.00014767,2]
[379727960,1755389358656,-400.0,0.00014767,2]
[379727961,1755389358682,-896.14,0.00014767,2]
[379727962,1755389358706,-546.66,0.00014767,2]
[379727963,1755389358730,-1939.94,0.00014767,2]
[379727964,1755389358754,-151.5673163,0.00014767,2]
[379727965,1755389358781,-773.81,0.00014767,2]
[379727966,1755389358807,-400.0,0.00014767,2]
[379727967,1755389358832,-380.43154785,0.00014767,2]
[379727968,1755389358856,-238.702351,0.00014767,2]
[379727969,1755389358882,-400.0,0.00014767,2]
[379727970,1755389358909,-400.0,0.00014767,2]
[379727971,1755389358935,-400.0,0.00014767,2]
[379727972,1755389358959,-2037.32,0.00014767,2]
[379727973,1755389358984,-151.07763,0.00014767,2]
[379727974,1755389359009,-442.93,0.00014767,2]
[379727975,1755389359033,-400.0,0.00014767,2]
[379727976,1755389359057,-5377.356723,0.00014767,2]
[379727977,1755389359081,-533.88,0.00014767,2]
[379727978,1755389359107,-1005.18,0.00014767,2]
[379727979,1755389359131,-417.01,0.00014767,2]
[379727980,1755389359156,-6039.271367,0.00014767,2]
[379727981,1755389359185,-881.04,0.00014767,2]
[379727982,1755389359210,-616.01,0.00014767,2]
[379727983,1755389359234,-400.0,0.00014767,2]
[379727984,1755389359261,-472.64,0.00014767,2]
[379727985,1755389359392,-401.13931664,0.00014767,2]
[379727986,1755389359416,-222.272355,0.00014767,2]
[379727987,1755389359440,-400.0,0.00014767,2]
[379727988,1755389359463,-400.0,0.00014767,2]
[379727989,1755389359486,-400.0,0.00014767,2]
[379727990,1755389359509,-1878.46,0.00014767,2]
[379727991,1755389359533,-2486.49,0.00014767,2]
[379727992,1755389359556,-400.0,0.00014767,2]
[379727993,1755389359579,-298.09956074,0.00014767,2]
[379727994,1755389359603,-400.0,0.00014767,2]
[379727995,1755389359628,-2280.91,0.00014767,2]
[379727996,1755389359651,-1651.02,0.00014767,2]
[379727997,1755389359676,-924.97,0.00014767,2]
[379727998,1755389359713,-1429.53,0.00014767,2]
[379727999,1755389359739,-400.0,0.00014767,2]
[379728000,1755389359763,-818.46,0.00014767,2]
[379728001,1755389359788,-400.0,0.00014767,2]
[379728002,1755389359812,-400.0,0.00014767,2]
[379728003,1755389359836,-400.0,0.00014767,2]
[379728004,1755389359860,-400.0,0.00014767,2]
[379728005,1755389359885,-546.01,0.00014767,2]
[379728006,1755389359910,-400.0,0.00014767,2]
[379728007,1755389359934,-755.77,0.00014767,2]
[379728008,1755389359960,-2661.57,0.00014767,2]
[379728009,1755389359984,-400.0,0.00014767,2]
[379728010,1755389360009,-400.0,0.00014767,2]
[379728011,1755389360036,-402.27188089,0.00014767,2]
[379728012,1755389360064,-400.0,0.00014767,2]
[379728013,1755389360090,-1056.57,0.00014767,2]
[379728014,1755389360117,-422.97,0.00014767,2]
[379728015,1755389360142,-1868.79,0.00014767,2]
[379728016,1755389360168,-400.0,0.00014767,2]
[379728017,1755389360192,-1316.58,0.00014767,2]
[379728018,1755389360217,-400.0,0.00014767,2]
[379728019,1755389360240,-504.58,0.00014767,2]
[379728020,1755389360265,-400.0,0.00014767,2]
[379728021,1755389360288,-407.50702786,0.00014767,2]
[379728022,1755389360313,-400.0,0.00014767,2]
[379728023,1755389360337,-400.0,0.00014767,2]
[379728024,1755389360361,-1466.21,0.00014767,2]
[379728025,1755389360386,-400.0,0.00014767,2]
[379728026,1755389360411,-400.0,0.00014767,2]
[379728027,1755389360436,-511.04,0.00014767,2]
[379728028,1755389360460,-400.0,0.00014767,2]
[379728029,1755389360486,-13161.38,0.00014767,2]
[379728030,1755389360511,-400.0,0.00014767,2]
[379728031,1755389360542,-1043.44,0.00014767,2]
[379728032,1755389360567,-400.0,0.00014767,2]
[379728033,1755389360593,-2008.64,0.00014767,2]
[379728034,1755389360628,-1641.44,0.00014767,2]
[379728035,1755389360655,-550.96,0.00014767,2]
[379728036,1755389360681,-400.0,0.00014767,2]
[379728037,1755389360730,-2342.32,0.00014767,2]
[379728038,1755389360755,-400.0,0.00014767,2]
[379728039,1755389360779,-400.0,0.00014767,2]
[379728040,1755389360803,-400.0,0.00014767,2]
[379728041,1755389360827,-640.97,0.00014767,2]
[379728042,1755389360851,-400.0,0.00014767,2]
[379728043,1755389360874,-515.14,0.00014767,2]
[379728044,1755389360897,-714.53,0.00014767,2]
[379728045,1755389360921,-400.0,0.00014767,2]
[379728046,1755389360946,-400.0,0.00014767,2]
[379728047,1755389360971,-464.93,0.00014767,2]
[379728048,1755389360994,-400.0,0.00014767,2]
[379728049,1755389361017,-888.56,0.00014767,2]
[379728050,1755389361042,-1365.42,0.00014767,2]
[379728051,1755389361066,-1498.91,0.00014767,2]
[379728052,1755389361089,-400.0,0.00014767,2]
[379728053,1755389361113,-400.0,0.00014767,2]
[379728054,1755389361136,-400.0,0.00014767,2]
[379728055,1755389361161,-400.0,0.00014767,2]
[379728056,1755389361190,-2224.98,0.00014767,2]
[379728057,1755389361213,-400.0,0.00014767,2]
[379728058,1755389361237,-2641.76,0.00014767,2]
[379728059,1755389361264,-400.0,0.00014767,2]
[379728060,1755389361288,-400.0,0.00014767,2]
[379728061,1755389361311,-400.0,0.00014767,2]
[379728062,1755389361334,-452.35,0.00014767,2]
[379728063,1755389361357,-1914.36,0.00014767,2]
[379728064,1755389361380,-400.0,0.00014767,2]
[379728065,1755389361405,-994.35,0.00014767,2]
[379728066,1755389361429,-400.0,0.00014767,2]
[379728067,1755389361452,-400.0,0.00014767,2]
[379728068,1755389361475,-400.0,0.00014767,2]
[379728069,1755389361499,-400.0,0.00014767,2]
[379728070,1755389361522,-828.82,0.00014767,2]
[379728071,1755389361545,-400.0,0.00014767,2]
[379728072,1755389361568,-1880.39,0.00014767,2]
[379728073,1755389361591,-400.0,0.00014767,2]
[379728074,1755389361615,-2295.3,0.00014767,2]
[379728075,1755389361638,-400.0,0.00014767,2]
[379728076,1755389361661,-400.0,0.00014767,2]
[379728077,1755389361685,-409.8,0.00014767,2]
[379728078,1755389361708,-400.0,0.00014767,2]
[379728079,1755389361733,-519.99,0.00014767,2]
[379728080,1755389361756,-400.0,0.00014767,2]
[379728081,1755389361781,-400.0,0.00014767,2]
[379728082,1755389361806,-764.21,0.00014767,2]
[379728083,1755389361832,-4197.76,0.00014767,2]
[379728084,1755389361856,-1070.08,0.00014767,2]
[379728085,1755389361878,-446.71,0.00014767,2]
[379728086,1755389361902,-2298.05,0.00014767,2]
[379728087,1755389361925,-402.51410659,0.00014767,2]
[379728088,1755389361949,-400.0,0.00014767,2]
[379728089,1755389361974,-400.0,0.00014767,2]
[379728090,1755389361999,-1215.13,0.00014767,2]
[379728091,1755389362023,-784.68,0.00014767,2]
[379728092,1755389362046,-2048.76,0.00014767,2]
[379728093,1755389362069,-1401.21,0.00014767,2]
[379728094,1755389362093,-401.01577346,0.00014767,2]
[379728095,1755389362116,-1494.98,0.00014767,2]
[379728096,1755389362140,-423.68,0.00014767,2]
[379728097,1755389362167,-400.0,0.00014767,2]
[379728098,1755389362192,-726.88,0.00014767,2]
[379728099,1755389362219,-2245.22,0.00014767,2]
[379728100,1755389362246,-500.0,0.00014767,2]
[379728101,1755389362271,-400.0,0.00014767,2]
[379728102,1755389362294,-400.0,0.00014767,2]
[379728103,1755389362318,-428.99,0.00014767,2]
[379728104,1755389362506,-1001.67,0.00014767,2]
[379728105,1755389362535,-412.79426481,0.00014767,2]
[379728106,1755389362558,-528.5703152,0.00014767,2]
[379728107,1755389362581,-400.0,0.00014767,2]
[379728108,1755389362604,-338.7397255,0.00014767,2]
[379728109,1755389362628,-892.76,0.00014767,2]
[379728110,1755389362651,-400.0,0.00014767,2]
[379728111,1755389362678,-400.0,0.00014767,2]
[379728112,1755389362701,-1240.62,0.00014767,2]
[379728113,1755389362724,-518.15,0.00014767,2]
[379728114,1755389362748,-400.0,0.00014767,2]
[379728115,1755389362772,-2101.57,0.00014767,2]
[379728116,1755389362795,-400.0,0.00014767,2]
[379728117,1755389362819,-400.0,0.00014767,2]
[379728118,1755389362842,-400.0,0.00014767,2]
[379728119,1755389362866,-715.93,0.00014767,2]
[379728120,1755389362888,-1288.21,0.00014767,2]
[379728121,1755389362911,-400.0,0.00014767,2]
[379728122,1755389362934,-400.0,0.00014767,2]
[379728123,1755389362957,-1495.64,0.00014767,2]
[379728124,1755389362980,-400.0,0.00014767,2]
[379728125,1755389363004,-400.0,0.00014767,2]
[379728126,1755389363028,-561.39,0.00014767,2]
[379728127,1755389363052,-400.0,0.00014767,2]
[379728128,1755389363075,-400.0,0.00014767,2]
[379728129,1755389363098,-1260.2,0.00014767,2]
[379728130,1755389363121,-1045.04,0.00014767,2]
[379728131,1755389363144,-1982.02,0.00014767,2]
[379728132,1755389363169,-400.0,0.00014767,2]
[379728133,1755389363192,-400.0,0.00014767,2]
[379728134,1755389363219,-400.0,0.00014767,2]
[379728135,1755389363246,-1550.21,0.00014767,2]
[379728136,1755389363269,-628.49,0.00014767,2]
[379728137,1755389363293,-400.0,0.00014767,2]
[379728138,1755389363318,-400.0,0.00014767,2]
[379728139,1755389363343,-4610.82,0.00014767,2]
[379728140,1755389363368,-400.0,0.00014767,2]
[379728141,1755389363393,-400.0,0.00014767,2]
[379728142,1755389363418,-1316.06,0.00014767,2]
[379728143,1755389363442,-400.0,0.00014767,2]
[379728144,1755389363470,-431.88,0.00014767,2]
[379728145,1755389363494,-482.47,0.00014767,2]
[379728146,1755389363517,-1231.29,0.00014767,2]
[379728147,1755389363540,-400.0,0.00014767,2]
[379728148,1755389363567,-621.34,0.00014767,2]
[379728149,1755389363590,-400.0,0.00014767,2]
[379728150,1755389363615,-1332.77,0.00014767,2]
[379728151,1755389363638,-764.77,0.00014767,2]
[379728152,1755389363664,-1357.21,0.00014767,2]
[379728153,1755389363687,-400.0,0.00014767,2]
[379728154,1755389363711,-1146.13,0.00014767,2]
[379728155,1755389363736,-400.0,0.00014767,2]
[379728156,1755389363760,-428.11,0.00014767,2]
[379728157,1755389363784,-1769.4,0.00014767,2]
[379728158,1755389363807,-400.0,0.00014767,2]
[379728159,1755389363831,-400.0,0.00014767,2]
[379728160,1755389363858,-400.0,0.00014767,2]
[379728161,1755389363881,-400.0,0.00014767,2]
[379728162,1755389363905,-1028.22,0.00014767,2]
[379728163,1755389363932,-400.0,0.00014767,2]
[379728164,1755389363956,-623.11,0.00014767,2]
[379728165,1755389363980,-646.66,0.00014767,2]
[379728166,1755389364004,-400.0,0.00014767,2]
[379728167,1755389364034,-400.0,0.00014767,2]
[379728168,1755389364061,-879.94,0.00014767,2]
[379728169,1755389364084,-712.39,0.00014767,2]
[379728170,1755389364106,-330.49837331,0.00014767,2]
[379728171,1755389364128,-400.0,0.00014767,2]
[379728172,1755389364153,-539.03,0.00014767,2]
[379728173,1755389364180,-400.0,0.00014767,2]
[379728174,1755389364208,-458.44,0.00014767,2]
[379728175,1755389364235,-1264.9,0.00014767,2]
[379728176,1755389364265,-8147.7,0.00014767,2]
[379728177,1755389364288,-401.3974266,0.00014767,2]
[379728178,1755389364313,-674.47,0.00014767,2]
[379728179,1755389364339,-400.0,0.00014767,2]
[379728180,1755389364364,-400.0,0.00014767,2]
[379728181,1755389364387,-789.69,0.00014767,2]
[379728182,1755389364411,-400.0,0.00014767,2]
[379728183,1755389364437,-400.0,0.00014767,2]
[379728184,1755389364464,-400.0,0.00014767,2]
[379728185,1755389364488,-400.0,0.00014767,2]
[379728186,1755389364511,-917.74,0.00014767,2]
[379728187,1755389364535,-400.0,0.00014767,2]
[379728188,1755389364557,-749.36,0.00014767,2]
[379728189,1755389364580,-1739.41,0.00014767,2]
[379728190,1755389364603,-684.8,0.00014767,2]
[379728191,1755389364626,-785.79,0.00014767,2]
[379728192,1755389364648,-400.0,0.00014767,2]
[379728193,1755389364671,-533.3,0.00014767,2]
[379728194,1755389364694,-851.26,0.00014767,2]
[379728195,1755389364716,-400.0,0.00014767,2]
[379728196,1755389365096,-400.0,0.00014767,2]
[379728197,1755389365121,-1107.4,0.00014767,2]
[379728198,1755389365148,-400.0,0.00014767,2]
[379728199,1755389365175,-400.0,0.00014767,2]
[379728200,1755389365200,-1811.57,0.00014767,2]
[379728201,1755389365226,-2205.38,0.00014767,2]
[379728202,1755389365251,-400.0,0.00014767,2]
[379728203,1755389365277,-736.32,0.00014767,2]
[379728204,1755389365301,-400.0,0.00014767,2]
[379728205,1755389365329,-400.0,0.00014767,2]
[379728206,1755389365355,-445.10954303,0.00014767,2]
[379728207,1755389365380,-2930.78,0.00014767,2]
[379728208,1755389365405,-400.0,0.00014767,2]
[379728209,1755389365432,-400.0,0.00014767,2]
[379728210,1755389365457,-3968.6,0.00014767,2]
[379728211,1755389365482,-474.59,0.00014767,2]
[379728212,1755389365507,-2383.94,0.00014767,2]
[379728213,1755389365531,-1441.48,0.00014767,2]
[379728215,1755389365554,-400.0,0.00014767,2]
[379728216,1755389365578,-651.82,0.00014767,2]
[379728218,1755389365602,-435.85173771,0.00014767,2]
[379728219,1755389365626,-1826.33,0.00014767,2]
[379728220,1755389365651,-525.83,0.00014767,2]
[379728222,1755389365675,-2308.46,0.00014767,2]
[379728223,1755389365699,-400.0,0.00014767,2]
[379728225,1755389365723,-1507.09,0.00014767,2]
[379728226,1755389365747,-1394.09,0.00014767,2]
[379728227,1755389365771,-1049.47,0.00014767,2]
[379728228,1755389365795,-400.0,0.00014767,2]
[379728229,1755389365820,-8276.69,0.00014767,2]
[379728230,1755389365846,-400.0,0.00014767,2]
[379728231,1755389365871,-1868.29,0.00014767,2]
[379728232,1755389365896,-363.46309404,0.00014767,2]
[379728233,1755389365921,-400.0,0.00014767,2]
[379728234,1755389365948,-400.0,0.00014767,2]
[379728235,1755389365971,-400.0,0.00014767,2]
[379728236,1755389365996,-2046.49,0.00014767,2]
[379728237,1755389366020,-400.0,0.00014767,2]
[379728238,1755389366045,-400.0,0.00014767,2]
[379728239,1755389366070,-463.49,0.00014767,2]
[379728240,1755389366094,-400.0,0.00014767,2]
[379728241,1755389366118,-4116.83,0.00014767,2]
[379728242,1755389366142,-400.0,0.00014767,2]
[379728243,1755389366171,-400.0,0.00014767,2]
[379728244,1755389366203,-652.23,0.00014767,2]
[379728245,1755389366270,-643.7,0.00014767,2]
[379728246,1755389366320,-400.0,0.00014767,2]
[379728247,1755389366346,-850.85,0.00014767,2]
[379728248,1755389366372,-2542.39,0.00014767,2]
[379728249,1755389366395,-2651.4825824,0.00014767,2]
[379728250,1755389366418,-400.0,0.00014767,2]
[379728251,1755389366442,-400.0,0.00014767,2]
[379728252,1755389366466,-400.0,0.00014767,2]
[379728253,1755389366492,-400.0,0.00014767,2]
[379728254,1755389366515,-400.0,0.00014767,2]
[379728255,1755389366539,-400.0,0.00014767,2]
[379728256,1755389366562,-400.0,0.00014767,2]
[379728257,1755389366587,-400.0,0.00014767,2]
[379728258,1755389366611,-1273.43,0.00014767,2]
[379728259,1755389366635,-1281.77,0.00014767,2]
[379728260,1755389366660,-1514.67,0.00014767,2]
[379728261,1755389366684,-400.0,0.00014767,2]
[379728262,1755389366709,-1040.67,0.00014767,2]
[379728263,1755389366737,-400.0,0.00014767,2]
[379728264,1755389366761,-879.77,0.00014767,2]
[379728265,1755389366786,-1680.86,0.00014767,2]
[379728266,1755389366810,-400.0,0.00014767,2]
[379728267,1755389366834,-904.34,0.00014767,2]
[379728268,1755389366860,-400.0,0.00014767,2]
[379728269,1755389366883,-512.44814782,0.00014767,2]
[379728270,1755389366909,-2047.41,0.00014767,2]
[379728271,1755389366943,-400.0,0.00014767,2]
[379728272,1755389366970,-706.42,0.00014767,2]
[379728273,1755389366994,-822.83,0.00014767,2]
[379728274,1755389367018,-585.95,0.00014767,2]
[379728275,1755389367043,-6019.61,0.00014767,2]
[379728276,1755389367069,-400.0,0.00014767,2]
[379728277,1755389367095,-2973.21,0.00014767,2]
[379728278,1755389367123,-7084.4,0.00014767,2]
[379728279,1755389367239,-4503.58,0.00014767,2]
[379728280,1755389367266,-400.0,0.00014767,2]
[379728281,1755389367290,-7862.37,0.00014767,2]
[379728282,1755389367313,-434.64,0.00014767,2]
[379728283,1755389367338,-400.0,0.00014767,2]
[379728284,1755389367361,-834.13,0.00014767,2]
[379728285,1755389367384,-400.0,0.00014767,2]
[379728286,1755389367407,-400.0,0.00014767,2]
[379728287,1755389367432,-6905.02,0.00014767,2]
[379728288,1755389367456,-551.0,0.00014767,2]
[379728289,1755389367480,-400.0,0.00014767,2]
[379728290,1755389367504,-504.13,0.00014767,2]
[379728291,1755389367529,-400.0,0.00014767,2]
[379728292,1755389367553,-2072.35,0.00014767,2]
[379728293,1755389367578,-482.05,0.00014767,2]
[379728294,1755389367605,-583.02,0.00014767,2]
[379728295,1755389367629,-595.44,0.00014767,2]
[379728296,1755389367653,-1346.26,0.00014767,2]
[379728297,1755389367676,-2754.66,0.00014767,2]
[379728298,1755389367699,-2284.34,0.00014767,2]
[379728299,1755389367722,-400.0,0.00014767,2]
[379728300,1755389367747,-424.56,0.00014767,2]
[379728301,1755389367771,-773.47,0.00014767,2]
[379728302,1755389367795,-500.0,0.00014767,2]
[379728303,1755389367822,-597.3,0.00014767,2]
[379728304,1755389367847,-400.0,0.00014767,2]
[379728305,1755389367872,-579.27,0.00014767,2]
[379728306,1755389367897,-400.0,0.00014767,2]
[379728307,1755389367922,-400.0,0.00014767,2]
[379728308,1755389367947,-2229.46,0.00014767,2]
[379728309,1755389367971,-400.0,0.00014767,2]
[379728310,1755389367995,-400.0,0.00014767,2]
[379728311,1755389368019,-3258.06,0.00014767,2]
[379728312,1755389368043,-5313.03,0.00014767,2]
[379728313,1755389368069,-1069.79,0.00014767,2]
[379728314,1755389368092,-951.28,0.00014767,2]
[379728315,1755389368116,-400.0,0.00014767,2]
[379728316,1755389368143,-262.325837,0.00014767,2]
[379728317,1755389368169,-262.325837,0.00014767,2]
[379728318,1755389368193,-400.0,0.00014767,2]
[379728319,1755389368218,-262.325837,0.00014767,2]
[379728320,1755389368245,-262.325837,0.00014767,2]
[379728321,1755389368271,-432.65,0.00014767,2]
[379728322,1755389368295,-400.0,0.00014767,2]
[379728323,1755389368319,-262.325837,0.00014767,2]
[379728324,1755389368344,-262.325837,0.00014767,2]
[379728325,1755389368368,-262.325837,0.00014767,2]
[379728326,1755389368392,-262.325837,0.00014767,2]
[379728327,1755389368417,-262.325837,0.00014767,2]
[379728328,1755389368442,-1101.26,0.00014767,2]
[379728329,1755389368467,-400.0,0.00014767,2]
[379728330,1755389368492,-262.325837,0.00014767,2]
[379728331,1755389368515,-262.325837,0.00014767,2]
[379728332,1755389368539,-262.325837,0.00014767,2]
[379728333,1755389368563,-400.0,0.00014767,2]
[379728334,1755389368587,-7968.81,0.00014767,2]
[379728335,1755389368612,-262.325837,0.00014767,2]
[379728336,1755389368637,-734.65,0.00014767,2]
[379728337,1755389368663,-262.325837,0.00014767,2]
[379728338,1755389368687,-262.325837,0.00014767,2]
[379728339,1755389368712,-400.0,0.00014767,2]
[379728340,1755389368737,-262.325837,0.00014767,2]
[379728341,1755389368761,-400.0,0.00014767,2]
[379728342,1755389368784,-400.0,0.00014767,2]
[379728343,1755389368807,-262.325837,0.00014767,2]
[379728344,1755389368830,-262.325837,0.00014767,2]
[379728345,1755389368853,-686.01,0.00014767,2]
[379728346,1755389368876,-262.325837,0.00014767,2]
[379728347,1755389368899,-2895.75,0.00014767,2]
[379728348,1755389368923,-262.325831,0.00014767,2]
[379728349,1755389368945,-400.0,0.00014767,2]
[379728350,1755389368972,-10116.79,0.00014767,2]
[379728351,1755389368998,-1427.4,0.00014767,2]
[379728352,1755389369022,-517.14,0.00014767,2]
[379728353,1755389369046,-519.0,0.00014767,2]
[379728354,1755389369071,-495.89,0.00014767,2]
[379728355,1755389369097,-2924.443736,0.00014767,2]
[379728356,1755389369122,-2924.443736,0.00014767,2]
[379728357,1755389369147,-2924.443736,0.00014767,2]
[379728358,1755389369173,-2924.443736,0.00014767,2]
[379728359,1755389369198,-2924.443736,0.00014767,2]
[379728360,1755389369227,-3196.02,0.00014767,2]
[379728361,1755389369252,-1874.41,0.00014767,2]
[379728362,1755389369276,-465.0,0.00014767,2]
[379728363,1755389369299,-2924.443736,0.00014767,2]
[379728364,1755389369321,-400.0,0.00014767,2]
[379728365,1755389369345,-2799.35,0.00014767,2]
[379728366,1755389369368,-774.05,0.00014767,2]
[379728367,1755389369392,-2924.443736,0.00014767,2]
[379728368,1755389369416,-3485.9,0.00014767,2]
[379728369,1755389369439,-2924.443736,0.00014767,2]